Cogmind - Beta 13 X1 @@@ ROGUE MODE // 2023.06.26 @ 15:34:30 Player: maxwell Result: Destroyed by DZ-Q7F(R) with Subdweller Laser Performance ------------- Evolutions (0) 0 Regions Visited (3) 600 Robots Destroyed (31) 155 Value Destroyed (829) 829 Prototype IDs (11) 220 Alien Tech Used (0) 0 Bonus (0) 0 TOTAL SCORE: 1804 Bonus ------- None Cogmind --------- Core Integrity 0/250 Matter 75/300 Energy 115/125 System Corruption 0% Temperature Cool (6) Movement Rolling (175) Ox5 Location -10/Subcaves Parts ------- > --- POWER (1) -------- Light Ion Engine > --- PROPULSION (2) --- Compact Wheel > --- UTILITY (2) ------ Disposable Heat Sink Huge Storage Unit > --- WEAPON (2) ------- Subdweller Machine Gun Subdweller Machine Gun > --- INVENTORY (25) --- Subdweller Power Source Meta Core Subdweller Monowheel Subdweller Monowheel High-capacity Matter Pod (0) Subdweller Optics Subdweller Optics Scrap Shield Subdweller Beam Cannon Assault Rifle Battle Rifle Subdweller Machine Gun Subdweller Shrapnel Launcher Scrap Shield Fragment (48) Scrap Shield Fragment (47) Scrap Shield Fragment (46) Scrap Shield Fragment (45) Scrap Shield Fragment (45) Scrap Shield Fragment (41) Scrap Shield Fragment (41) Scrap Shield Fragment (41) Scrap Shield Fragment (39) Scrap Shield Fragment (39) Peak State ------------ > --- POWER ------------ Light Ion Engine > --- PROPULSION ------- Wheel Compact Wheel > --- UTILITY ---------- Decoy Drone Bay > --- WEAPON ----------- Battle Rifle Light Cannon > --- INVENTORY -------- Meta Core Huge Storage Unit Scrap Shield Subdweller Shrapnel Launcher [Rating: 22] Favorites ----------- Power Ion Engine Engine Ion Engine Propulsion Light Treads Treads Light Treads Leg Aluminum Leg Wheel Wheel Utility Small Storage Unit Device Decoy Drone Bay Storage Small Storage Unit Protection Core Shielding Weapon Small Laser Energy Gun Small Laser Ballistic Gun Light Assault Rifle Ballistic Cannon Light Cannon Launcher Subdweller Shrapnel Launcher Build | -11 -10 -10 -10 ------- Run | Jun Mat Min Sub Slots Evolved . | . . . . Power . | . . . . Propulsion . | . . . . Utility . | . . . . Weapon . | . . . . Parts Attached 35 | . 12 6 17 Power 4 | . 2 1 1 Engine 4 | . 2 1 1 Core . | . . . . Reactor . | . . . . Propulsion 8 | . 4 2 2 Treads 4 | . 4 . . Leg . | . . . . Wheel 4 | . . 2 2 Hover . | . . . . Flight . | . . . . Utility 8 | . 3 2 3 Device 3 | . 1 . 2 Storage 1 | . . . 1 Processor . | . . . . Hackware . | . . . . Protection 4 | . 2 2 . Artifact . | . . . . Weapon 15 | . 3 1 11 Energy Gun 1 | . 1 . . Energy Cannon . | . . . . Ballistic Gun 10 | . 2 . 8 Ballistic Cannon 3 | . . 1 2 Launcher 1 | . . . 1 Special Weapon . | . . . . Impact Weapon . | . . . . Slashing Weapon . | . . . . Piercing Weapon . | . . . . Special Melee Weapon . | . . . . Unidentified Prototypes 1 | . . . 1 Parts Lost 12 | . 3 4 5 Power 2 | . 1 1 . Propulsion 5 | . . 2 3 Utility . | . . . . Weapon 5 | . 2 1 2 Highest Loss Streak 3 | . 1 3 2 To Critical Strikes 1 | . . . 1 Average Slot Usage (%) 92 | . 99 98 86 Engine 13 | . 13 12 14 Treads 12 | . 24 22 . Leg 1 | . 3 . . Wheel 14 | . . 5 27 Device 6 | . 1 . 12 Storage 8 | . 14 14 1 Protection 7 | . 12 14 . Energy Gun 9 | . 4 14 9 Ballistic Gun 12 | . 23 11 6 Ballistic Cannon 6 | . . 2 12 Naked Turns . | . . . . Heaviest Build 92 | 14 16 15 92 Greatest Support 40 | 20 40 40 26 Greatest Overweight (x) 3 | . . . 3 Average Overweight (x) . | . . . . Largest Inventory Capacity 25 | . 8 8 25 Average Capacity 7 | . 8 8 6 Most Carried 25 | . 8 8 25 Average Carried 6 | . 7 6 5 Final Capacity 25 | 8 8 8 25 Final Carried 24 | 6 6 8 24 Class Distribution -------------------- 96% | Mutant 3% | Subdweller-Mutant Dominant Class ---------------- Mutant | -10/Materials Mutant | -10/Mines Mutant | -10/Subcaves Resources | -11 -10 -10 -10 ----------- Run | Jun Mat Min Sub Matter Collected 1115 | 185 332 143 455 Remotely . | . . . . Salvage Created 968 | . 420 230 318 Parts 77 | . 21 14 42 Haulers Intercepted 1 | . 1 . . Recyclers Shooed 1 | . 1 . . Parts Field Recycled . | . . . . Retrieved Matter . | . . . . Parts Self-Destructed 3 | . . . 3 Prevented . | . . . . Kills | -11 -10 -10 -10 ------- Run | Jun Mat Min Sub Combat Hostiles Destroyed 23 | . 8 3 12 Guns 16 | . 8 1 7 Cannons 7 | . . 2 5 Classes Destroyed 7 | . 5 1 1 Worker 5 | . 1 4 . Hauler 1 | . 1 . . Recycler 2 | . 1 1 . Swarmer 4 | . 3 . 1 Grunt 7 | . 5 2 . Demolisher 1 | . . 1 . Subdweller 11 | . . . 11 Best Kill Streak 4 | . 3 4 2 Combat Bots Only 2 | . 2 2 2 Max Kills in Single Turn 1 | . 1 1 1 Gunslinging . | . . . . Exploded . | . . . . Melee . | . . . . Uniques/NPCs Destroyed . | . . . . Combat | -11 -10 -10 -10 -------- Run | Jun Mat Min Sub Damage Taken 1949 | . 577 422 950 Core 257 | . 48 14 195 Absorbed by Shields . | . . . . Redirected to Shielding 17 | . 10 . 7 Core Remaining (%) 100 | 100 . . . Volleys Fired 242 | . 75 23 144 Largest 2 | . 2 2 2 Hottest 75 | . 60 75 75 Shots Fired 389 | . 150 46 193 Gun 276 | . 150 32 94 Cannon 113 | . . 14 99 Launcher . | . . . . Special . | . . . . Kinetic 324 | . 140 23 161 Thermal 60 | . 5 23 32 Explosive . | . . . . Electromagnetic 5 | . 5 . . Robot Hit Streak 25 | . 25 7 14 Robot Miss Streak 4 | . 4 4 2 Penetration Max . | . . . . Secondary Targets 1 | . . . 1 Max Gunslinging Chain 1 | . . . 1 Shots Hit Robots 199 | . 105 29 65 Core Hits 59 | . 25 11 23 Critical Kills . | . . . . Critical Parts Destroyed 1 | . . . 1 Critical Strikes 3 | . . 1 2 Destroy 1 | . . . 1 Blast 2 | . . 1 1 Melee Attacks . | . . . . Impact . | . . . . Slashing . | . . . . Piercing . | . . . . Sneak Attacks . | . . . . Combat Hostiles . | . . . . Follow-up Attacks . | . . . . Damage Inflicted 2547 | . 1072 380 1095 Guns 1949 | . 1069 217 663 Cannons 595 | . . 163 432 Explosions . | . . . . Melee . | . . . . Ramming 3 | . 3 . . Kinetic 2132 | . 1035 195 902 Thermal 412 | . 34 185 193 Explosive . | . . . . Electromagnetic . | . . . . Impact . | . . . . Slashing . | . . . . Piercing . | . . . . Highest Corruption . | . . . . Average Corruption . | . . . . Corruption Purged . | . . . . Corruption Blocked . | . . . . Overload Shots . | . . . . Overflow Damage . | . . . . Projectiles . | . . . . Explosions . | . . . . Melee . | . . . . Knockbacks 6 | . . 3 3 Impact . | . . . . Kinetic 6 | . . 3 3 Secondary . | . . . . Self-Inflicted Damage . | . . . . Shots . | . . . . Rammed 2 | . 2 . . Targets Rammed 2 | . 2 . . Kicked . | . . . . Crushed . | . . . . Highest Temperature 142 | . 36 142 . Average Temperature 39 | . 11 60 . Received Heat Transfer 486 | . 321 126 39 Siege Activations . | . . . . Robots Corrupted . | . . . . Combat Hostiles . | . . . . Parts Fried . | . . . . Impact Corruptions . | . . . . Robots Melted . | . . . . Combat Hostiles . | . . . . Parts Melted 1 | . . . 1 Heat Transferred 900 | . 75 400 425 Parts Sabotaged . | . . . . Parts Stolen . | . . . . Parts Stripped . | . . . . Power Chain Reactions . | . . . . Missiles Intercepted . | . . . . Alert | -11 -10 -10 -10 ------- Run | Jun Mat Min Sub Peak Influence 212 | . 212 65 . Initial 49 | . . 49 . Average 71 | . 115 28 . Maximum Alert Level 1 | . 1 . . Low Security (%) 98 | . 96 100 . Level 1 1 | . 3 . . Level 2 . | . . . . Level 3 . | . . . . Level 4 . | . . . . Level 5 . | . . . . High Security . | . . . . Max Security . | . . . . Squads Dispatched 2 | . 2 . . Investigation . | . . . . Extermination . | . . . . Reinforcement 2 | . 2 . . Assault . | . . . . Garrison . | . . . . Intercept . | . . . . Searches Triggered . | . . . . Construction Impeded . | . . . . Haulers Reinforced . | . . . . Active Scanning Responses . | . . . . Cargo Convoy Interrupts . | . . . . Stealth | -11 -10 -10 -10 --------- Run | Jun Mat Min Sub Distress Signals 3 | . 3 . . Communications Jammed . | . . . . Distress Signals . | . . . . Times Spotted 53 | . 21 3 29 Peak Tracking Total 6 | . 5 2 6 Tactical Retreats 9 | . 2 . 7 Traps | -11 -10 -10 -10 ------- Run | Jun Mat Min Sub Traps Triggered 3 | . 2 . 1 Indirectly . | . . . . Trap Hack Attempts . | . . . . Triggered . | . . . . Disarmed . | . . . . Reprogrammed . | . . . . Reused . | . . . . Traps Extracted . | . . . . Installed . | . . . . Triggered . | . . . . Machines | -11 -10 -10 -10 ---------- Run | Jun Mat Min Sub Machines Disabled 1 | . . . 1 Max in Single Turn 1 | . . . 1 Machines Repaired . | . . . . Machines Sabotaged . | . . . . Overloaded Fab Kills . | . . . . Hacking | -11 -10 -10 -10 --------- Run | Jun Mat Min Sub Machines Accessed 7 | . 4 1 2 Terminals 4 | . 4 . . Fabricators . | . . . . Repair Stations . | . . . . Recycling Units . | . . . . Scanalyzers . | . . . . Garrison Access . | . . . . Total Hacks 29 | . 16 1 12 Successful 22 | . 9 1 12 Failed 6 | . 6 . . Catastrophic . | . . . . Database Lockouts 1 | . 1 . . Manual 16 | . 16 . . Terminals 16 | . 16 . . Fabricators . | . . . . Repair Stations . | . . . . Recycling Units . | . . . . Scanalyzers . | . . . . Garrison Access . | . . . . Terminal Hacks 18 | . 5 1 12 Record 11 | . . . 11 Robot Analysis 3 | . 3 . . Open Door 1 | . . 1 . Locate Traps 2 | . 2 . . Derelict Proto ID Bank 1 | . . . 1 Fabricator Hacks . | . . . . Repair Station Hacks . | . . . . Recycling Unit Hacks . | . . . . Scanalyzer . | . . . . Garrison Access Hacks . | . . . . Unauthorized Hacks 4 | . 4 . . Terminals 4 | . 4 . . Track 1 | . 1 . . Botnet 3 | . 3 . . Fabricators . | . . . . Repair Stations . | . . . . Recycling Units . | . . . . Scanalyzers . | . . . . Garrison Access . | . . . . Data Cores Recovered . | . . . . Used . | . . . . Hacking Detections 4 | . 4 . . Full Trace Events . | . . . . Feedback Events . | . . . . Feedback Blocked . | . . . . Robot Schematics Acquired . | . . . . Robots Built . | . . . . Authchips . | . . . . Time . | . . . . Total Robot Build Rating . | . . . . Part Schematics Acquired . | . . . . Parts Built . | . . . . Authchips . | . . . . Time . | . . . . Total Part Build Rating . | . . . . Parts Repaired . | . . . . Time . | . . . . Parts Recycled . | . . . . Recycled Matter . | . . . . Retrieved Matter . | . . . . Retrieved Components . | . . . . Parts Scanalyzed . | . . . . Part Schematics Acquired . | . . . . Parts Damaged . | . . . . Bothacking | -11 -10 -10 -10 ------------ Run | Jun Mat Min Sub Used RIF Installer . | . . . . Robots Hacked . | . . . . Non-combat . | . . . . Combat . | . . . . Robot Hacks Applied . | . . . . Relay Couplers Released . | . . . . Fabnet Peak Effective % . | . . . . Robots Rewired . | . . . . Allies Hacked . | . . . . Hacks Repelled . | . . . . Allies | -11 -10 -10 -10 -------- Run | Jun Mat Min Sub Total Allies . | . . . . Largest Group . | . . . . Highest-Rated Group . | . . . . Highest-Rated Ally . | . . . . Total Orders 15 | . . . 15 EXPLORE 14 | . . . 14 RETURN 1 | . . . 1 Ally Attacks . | . . . . Total Damage . | . . . . Kills . | . . . . Allies Corrupted . | . . . . Allies Melted . | . . . . Intel | -11 -10 -10 -10 ------- Run | Jun Mat Min Sub Robot Analysis Total 3 | . 3 . . Derelict Logs Recovered 1 | . . . 1 Drone Launches 14 | . . . 14 Drone Recoveries 1 | . . . 1 Exploration | -11 -10 -10 -10 ------------- Run | Jun Mat Min Sub Turns Passed 3851 | . 1027 1047 1777 Spaces Moved 1918 | 1 468 348 1101 Core . | . . . . Treads 564 | . 375 189 . Legs 94 | 1 93 . . Wheels 1260 | . . 159 1101 Hover . | . . . . Flight . | . . . . Fastest Speed 80 | 120 120 80 80 Average Speed 113 | 120 152 123 94 Slowest Speed 160 | 120 160 160 135 Overloaded Moves . | . . . . Propulsion Burnouts . | . . . . Robots Hopped . | . . . . Cave-ins Triggered . | . . . . Exploration Rate (%) 59 | 2 93 53 89 Regions Visited 3 Branch Regions 2 Pre-discovered Areas 1 | . . . 1 Known Exits Taken . | . . . . Unknown Exits Taken 3 | 1 1 1 . Scrap Searched 2 | . . . 2 Spaces Dug . | . . . . Terrain Destroyed . | . . . . Melee . | . . . . Projectile . | . . . . AOE . | . . . . Terrain Rammed . | . . . . Walls Destroyed . | . . . . Machines Disabled . | . . . . Actions | -11 -10 -10 -10 --------- Run | Jun Mat Min Sub Total 3213 | . 648 920 1645 Wait 965 | . 81 538 346 Move 1915 | . 467 347 1101 Hop . | . . . . Pick Up 40 | . 6 5 29 Fast Attach 8 | . 6 1 1 Attach 18 | . 5 4 9 Detach 1 | . . . 1 Swap 9 | . 1 1 7 Drop 13 | . 5 1 7 Fire 242 | . 75 23 144 Melee . | . . . . Ram . | . . . . Kick . | . . . . Crush 2 | . 2 . . Escape Stasis . | . . . . Rewire . | . . . . Trap . | . . . . Miscellaneous . | . . . . Route ------- -11/Junkyard -10/Materials (discovered 5 exits: [*Mat x3] / *Min x2) -10/Mines (discovered 2 exits: [*Mat] / *Sub) -10/Subcaves (discovered 2 exits: [*Mat] / [*Mat]) History --------- Turn | Location | Event 1 | -11/Junkyard | Discovered new exit (range 0) 1 | -11/Junkyard | Entered Materials 180 | -10/Materials | Discovered new exit (range 16) 253 | -10/Materials | Central database locked down 314 | -10/Materials | Build established: Mutant 335 | -10/Materials | Discovered new exit (range 8) 730 | -10/Materials | Discovered new exit (range 15) 883 | -10/Materials | Discovered new exit (range 14) 985 | -10/Materials | Discovered new exit (range 14) 1028 | -10/Materials | Entered Mines 1029 | -10/Mines | Assembled infested the area 1549 | -10/Mines | Discovered new exit (range 14) 1658 | -10/Mines | Discovered new exit (range 5) 1794 | -10/Mines | Found a hidden stash of uninstalled traps 1933 | -10/Mines | Lost 3 parts (1p1n1w) 1947 | -10/Mines | Found the Drone Emporium 1950 | -10/Mines | Found Prototype Device 2075 | -10/Mines | Entered Subcaves 2108 | -10/Subcaves | Discovered new exit (range 3) 2164 | -10/Subcaves | Identified Decoy Drone Bay 3051 | -10/Subcaves | Core integrity fell below 50% 3069 | -10/Subcaves | Visited Clippyterm 3072 | -10/Subcaves | Learned Factory stockpile data 3199 | -10/Subcaves | Learned location of Zion (-7) 3213 | -10/Subcaves | Shifting Twisted Machinery released Battle Rifle 3216 | -10/Subcaves | Shifting Twisted Machinery released Hvy. Battle Rifle 3279 | -10/Subcaves | Discovered new exit (range 63) 3341 | -10/Subcaves | Shifting Twisted Machinery released Sub. Beam Cannon 3348 | -10/Subcaves | Shifting Twisted Machinery released Mak. Hammer 3633 | -10/Subcaves | Visited 4L-MR0's lab 3676 | -10/Subcaves | Found Meta Core 3845 | -10/Subcaves | Core integrity fell below 20% 3852 | -10/Subcaves | Destroyed by DZ-Q7F(R) with Subdweller Laser Last Messages --------------- 03742_ Acquired 1 matter. 03761_ R8-VDN(R) destroyed. 03761_ Switching to secondary target: KV-6BM(R). 03764_ Sub. Optics melted. 03764_ KV-6BM(R) destroyed. 03769_ Acquired Scrap Shield Fragment. 03790_ Acquired 36 matter. 03793_ Acquired Scrap Shield Fragment. 03796_ Acquired 27 matter. 03799_ Acquired Scrap Shield Fragment. 03801_ Acquired Sub. Optics. 03810_ Acquired Sub. Beam Cannon. 03819_ Acquired Sub. Monowheel. 03821_ Acquired Sub. Power Source. 03827_ Acquired Sub. Monowheel. 03847_ Wheel destroyed. 03848_ V5-ZWH(R) suffers critical hit (Destroy). 03848_ Destroyed Sub. Machine Gun. 03848_ V5-ZWH(R) destroyed. 03850_ Sub. Machine Gun destroyed. Map ----- +----------------------------------------------------+ | ??????????????????????????????????????????? | | ??????????????????????????????????????????? | | ??????????????????????????????????????????? | | ???????????????????####???????????????????? | | ?????????????????###" ####"???????????????? | | ????????????????## """## ???????????????? | | ???????????????## ## #??????????????? | | ??????????????## #? ??????????????? | | ??????????????# ### """????????????? | | ??????????????# # ""????????????? | | ???????????????# """ #?????????????? | | ????????????????# " ##????????????? | | ????????????????## ## ## #####????????? | | ?????????????????# #?### #????????? | | ???????????????### #### ##???????? | | ???????????????# #?# ###?????? | | ??????????????## ##?# ##???? | | ??????????????# ##??# ## ## ##???# | | ??????????????## #?###?## #### ##??? | | ??????????????## ### ### #?# #### | | ??????????????# *### &%# # ##?## "" # | | ??????????????# !%= #??# "" | | ???????#####??## R ##??# " | | ???#####" ###?#% # # #???## " | | ???# #### ""### ##### ###### " | | ???#" ####" "## @ ##??# " "## "### | | ???## ##" ###< ## #### #### "#?# | | ???#" ### # ### < #??# "## | | ???#"" #?# "" "#??# "" | | ???#"X #?# ""##" #?# "" | | ???#"" #?# #< ###"""" ### | | ???#" #### ## ##?# """"##?# | | ???#" ##" "# ####??# "#??# # | | ???# #+## "## #?????### #??## ? | | ???#""# ##! "## ###??????# ##???## #? | | ???#### ]"### ##??????##?????## ##? | | ??????#""" "### #??????????????##??? | | ??????#######?### #??????????????????? | | ????????????????### #?????????????????## | | ??????????????????# ##???????????????## | | ?????????????????## #?????????????### | | ?????????????????# ##?????????????# | | ?????????????????# #??????????????## | | ????????????????## ##??????????????#### | | ???????????????## "" #?????????????????# | | ???????????????# "" ""#?????????????????? | | ???????????????#""" " #?????????????????? | | ???????????????##" ## ##?????????????????? | | ????????????????#" ### #??????????????????? | | ???????????????##"" #?##??????????????????? | +----------------------------------------------------+ Best States ------------- Heat Dissipation 25 Coolant Potential 50 Energy Generation 10 Energy Capacity 250 Matter Stores 300 Matter Capacity 300 Sight Range 16 Terrain Scan Density 10 ECM Strength 1 Armor Coverage 150 Core Shielding 20 Utility Shielding 33 Evasion (%) 55 Recoil Reduction 2 Item Schematics ----------------- None Robot Schematics ------------------ None Fabricated ------------ Nothing Alien Tech Used ----------------- None Achievements -------------- None Challenges ------------ None Game ------ Seed AntimissileMicroBuckler Manual? 0 Play Time 00:24:35 Cumulative 368.3 hours Start 2023.06.26 @ 15:07:57 End 2023.06.26 @ 15:34:30 Sessions 1 Manual Loads 0 Difficulty Rogue Special Mode None Game No. 532 Rogue 505 Adventurer 4 Explorer 23 Win Type - Total 20 Types 14/0/2/2/1/0/0/1/0 Lore% 79 Gallery% 91 Achievement% 83 Wizard Run 0 Options --------- ASCII 0 Keyboard 1 Movement Numpad Keybinds 0 Fullscreen 1 Font 18/SmallcapsGlow Map View 76x50 Tactical HUD 1 Map Filters NONE Filters NONE Steam 1 RUN: 5077890d-800b-4240-ac4b-9898be4ecb5c